Cogmind - Beta 15 @@@ ROGUE MODE // 2025.08.20 @ 19:48:02 Player: beans Result: Destroyed by S-10 Pest with Light Assault Rifle Performance ------------- Evolutions (0) 0 Regions Visited (3) 600 Robots Destroyed (20) 100 Value Destroyed (499) 499 Prototype IDs (0) 0 Alien Tech Used (0) 0 Bonus (0) 0 TOTAL SCORE: 1199 Bonus ------- None Cogmind --------- Core Integrity 0/250 Matter 300/300 Energy 66/100 System Corruption 0% Temperature Cool (0) Movement Core (50) Location -10/Subcaves Parts ------- > --- POWER (1) -------- (None) > --- PROPULSION (2) --- (None) > --- UTILITY (2) ------ (None) > --- WEAPON (2) ------- Makeshift Axe > --- INVENTORY (5) ---- Light Treads Light Treads Light Assault Rifle Peak State ------------ > --- POWER ------------ Ion Engine > --- PROPULSION ------- Hover Unit Hover Unit > --- UTILITY ---------- (None) > --- WEAPON ----------- Assault Rifle Makeshift Axe > --- INVENTORY -------- Light Treads Light Treads Light Assault Rifle [Rating: 8] Favorites ----------- Power Ion Engine Engine Ion Engine Propulsion Hover Unit Treads Light Treads Hover Unit Hover Unit Utility None Weapon Assault Rifle Ballistic Gun Assault Rifle Launcher Grenade Launcher Special Weapon Flamer Slashing Weapon Makeshift Axe Build | -11 -10 -10 -10 ------- Run | Yrd Mat Min Sub Slots Evolved . | . . . . Power . | . . . . Propulsion . | . . . . Utility . | . . . . Weapon . | . . . . Parts Attached 10 | 5 3 1 1 Power 1 | 1 . . . Engine 1 | 1 . . . Core . | . . . . Reactor . | . . . . Propulsion 4 | 2 2 . . Treads 2 | 2 . . . Leg . | . . . . Wheel . | . . . . Hover 2 | . 2 . . Flight . | . . . . Utility . | . . . . Device . | . . . . Storage . | . . . . Processor . | . . . . Hackware . | . . . . Protection . | . . . . Artifact . | . . . . Weapon 5 | 2 1 1 1 Energy Gun . | . . . . Energy Cannon . | . . . . Ballistic Gun 2 | 2 . . . Ballistic Cannon . | . . . . Launcher 1 | . 1 . . Special Weapon 1 | . . . 1 Impact Weapon . | . . . . Slashing Weapon 1 | . . 1 . Piercing Weapon . | . . . . Special Melee Weapon . | . . . . Unidentified Prototypes . | . . . . Parts Lost 6 | . 1 1 4 Power 1 | . . 1 . Propulsion 2 | . . . 2 Utility . | . . . . Weapon 3 | . 1 . 2 Highest Loss Streak 2 | . 1 1 2 To Critical Strikes . | . . . . Average Backups 1 | 1 1 2 3 Power . | . . . . Propulsion 1 | . . 2 2 Utility . | . . . . Weapon . | . . . 1 Tool/Special . | . . . . Unused Backups 1 | 1 . . . Power . | . . . . Propulsion . | . . . . Utility . | . . . . Weapon 1 | 1 . . . Tool/Special . | . . . . Average Slot Usage (%) 62 | . 70 64 40 Engine 9 | . 14 7 . Treads 11 | . 21 . . Hover 14 | . 6 28 17 Ballistic Gun 16 | . 19 20 7 Launcher 4 | . 8 . . Slashing Weapon 4 | . . 7 14 Peak Build Rating 8 | 5 5 8 7 Average Rating 5 | 3 4 6 5 On Entrance 4 | . 5 5 7 Naked Turns . | . . . . Heaviest Build 10 | 8 10 10 5 Greatest Support 40 | 40 40 12 12 Greatest Overweight (x) 2 | 2 . . . Average Overweight (x) . | . . . . Largest Inventory Capacity 5 | 5 5 5 5 Average Capacity 5 | 5 5 5 5 Most Carried 4 | 3 3 3 4 Average Carried 1 | . 1 2 3 Final Capacity 5 | 5 5 5 5 Final Carried 3 | . 2 3 3 Class Distribution -------------------- 100% | Mutant Dominant Class ---------------- Mutant | -10/Materials Mutant | -10/Mines Mutant | -10/Subcaves Resources | -11 -10 -10 -10 ----------- Run | Yrd Mat Min Sub Matter Collected 568 | 233 74 261 . Remotely . | . . . . Salvage Created 629 | . 309 216 104 Parts 31 | . 15 10 6 Haulers Intercepted . | . . . . Recyclers Shooed 2 | . 1 1 . Parts Field Recycled . | . . . . Retrieved Matter . | . . . . Parts Self-Destructed . | . . . . Prevented . | . . . . Kills | -11 -10 -10 -10 ------- Run | Yrd Mat Min Sub Combat Hostiles Destroyed 13 | . 9 2 2 Melee 4 | . . 2 2 Guns 1 | . 1 . . AOE 8 | . 8 . . Classes Destroyed 7 | . 4 2 1 Worker 1 | . . 1 . Tunneler 1 | . . 1 . Recycler 3 | . 2 1 . Watcher 2 | . 2 . . Swarmer 3 | . 3 . . Grunt 8 | . 6 2 . Subdweller 2 | . . . 2 Best Kill Streak 9 | . 9 5 1 Combat Bots Only 7 | . 7 2 1 Max Kills in Single Turn 3 | . 3 1 1 Gunslinging . | . . . . Exploded 2 | . 2 . . Melee 1 | . . 1 1 Uniques/NPCs Destroyed . | . . . . Combat | -11 -10 -10 -10 -------- Run | Yrd Mat Min Sub Hostile Shots Fired 68 | . 29 10 29 Missed 20 | . 11 3 6 Hits 48 | . 18 7 23 Projectile 48 | . 18 7 23 Critical Strikes 1 | . . . 1 Damage Taken 676 | . 221 99 356 Core 256 | . 59 39 158 Absorbed by Shields . | . . . . Core Remaining (%) 100 | 100 . . . Volleys Fired 38 | . 33 1 4 Largest 2 | . 2 2 1 Hottest 100 | . 40 40 100 Shots Fired 47 | . 41 2 4 Gun 18 | . 16 2 . Cannon . | . . . . Launcher 25 | . 25 . . Special 4 | . . . 4 Kinetic 18 | . 16 2 . Thermal 4 | . . . 4 Explosive 25 | . 25 . . Electromagnetic . | . . . . Robot Hit Streak 9 | . 9 . 2 Robot Miss Streak 3 | . 3 3 1 Penetration Max . | . . . . Secondary Targets . | . . . . Shots Hit Robots 36 | . 18 8 10 Core Hits 31 | . 24 4 3 Critical Kills . | . . . . Critical Parts Destroyed . | . . . . Critical Strikes 1 | . . 1 . Sever 1 | . . 1 . Melee Attacks 22 | . . 10 12 Impact . | . . . . Slashing 22 | . . 10 12 Piercing . | . . . . Sneak Attacks 4 | . . 4 . Combat Hostiles . | . . . . Follow-up Attacks . | . . . . Damage Inflicted 1897 | . 1146 438 313 Guns 132 | . 132 . . Cannons . | . . . . Explosions 1014 | . 1014 . . Melee 716 | . . 438 278 Ramming . | . . . . Kinetic 132 | . 132 . . Thermal 35 | . . . 35 Explosive 1014 | . 1014 . . Electromagnetic . | . . . . Impact . | . . . . Slashing 716 | . . 438 278 Piercing . | . . . . Highest Corruption . | . . . . Average Corruption . | . . . . Corruption Purged . | . . . . Corruption Blocked . | . . . . Overload Shots . | . . . . Overflow Damage 106 | . 19 87 . Projectiles . | . . . . Explosions 19 | . 19 . . Melee 87 | . . 87 . Knockbacks . | . . . . Impact . | . . . . Kinetic . | . . . . Secondary . | . . . . Self-Inflicted Damage 6 | . 6 . . Shots 2 | . 2 . . Rammed . | . . . . Targets Rammed . | . . . . Kicked . | . . . . Crushed . | . . . . Highest Temperature 13 | . 13 4 . Average Temperature 4 | . 4 3 . Received Heat Transfer 219 | . 105 54 60 Siege Activations . | . . . . Martial Activations . | . . . . Shielding Activations . | . . . . Robots Disrupted . | . . . . Combat Hostiles . | . . . . Robots Corrupted . | . . . . Combat Hostiles . | . . . . Parts Fried . | . . . . Impact Corruptions . | . . . . Robots Melted . | . . . . Combat Hostiles . | . . . . Parts Melted . | . . . . Heat Transferred 240 | . . . 240 Parts Sabotaged . | . . . . Parts Stolen . | . . . . Parts Stripped . | . . . . Power Chain Reactions . | . . . . Alert | -11 -10 -10 -10 ------- Run | Yrd Mat Min Sub Maximum Alert Level 1 | . 1 . . Low Security (%) 68 | 100 47 100 . Level 1 31 | . 52 . . Level 2 . | . . . . Level 3 . | . . . . Level 4 . | . . . . Level 5 . | . . . . High Security . | . . . . Max Security . | . . . . Peak Influence 266 | . 266 140 . Initial 95 | . . 95 . Average 115 | . 146 111 . Influence Increases 416 | . 336 80 . Destroy 0b10 Robot/C 220 | . 180 40 . Destroy 0b10 Robot/NC 35 | . 20 15 . Destroy Leader 44 | . 34 10 . Disable Machine 30 | . 30 . . Destroy Structure 72 | . 72 . . Lose Combat Pursuer 15 | . . 15 . Influence Decreases 416 | . 90 201 125 Entered New Map 216 | . . 151 65 Time Decay 150 | . 80 40 30 Lost Part 50 | . 10 10 30 Squads Dispatched . | . . . . Investigation . | . . . . Extermination . | . . . . Reinforcement . | . . . . Assault . | . . . . Garrison . | . . . . Intercept . | . . . . Searches Triggered . | . . . . Construction Impeded . | . . . . Haulers Reinforced . | . . . . Active Scanning Responses . | . . . . Cargo Convoy Interrupts . | . . . . Stealth | -11 -10 -10 -10 --------- Run | Yrd Mat Min Sub Distress Signals 2 | . 2 . . Communications Jammed . | . . . . Distress Signals . | . . . . Times Spotted 18 | . 11 3 4 Peak Tracking Total 4 | . 4 2 2 Tactical Retreats 1 | . . 1 . Traps | -11 -10 -10 -10 ------- Run | Yrd Mat Min Sub Traps Triggered . | . . . . Indirectly . | . . . . Trap Hack Attempts . | . . . . Triggered . | . . . . Disarmed . | . . . . Reprogrammed . | . . . . Reused . | . . . . Traps Extracted . | . . . . Installed . | . . . . Triggered . | . . . . Machines | -11 -10 -10 -10 ---------- Run | Yrd Mat Min Sub Machines Disabled 3 | . 3 . . Max in Single Turn 1 | . 1 . . Machines Repaired . | . . . . Machines Dismantled . | . . . . Machines Sabotaged . | . . . . Overloaded Fab Kills . | . . . . Hacking | -11 -10 -10 -10 --------- Run | Yrd Mat Min Sub Machines Accessed . | . . . . Terminals . | . . . . Fabricators . | . . . . Repair Stations . | . . . . Recycling Units . | . . . . Scanalyzers . | . . . . Garrison Access . | . . . . Total Hacks . | . . . . Successful . | . . . . Failed . | . . . . Catastrophic . | . . . . Database Lockouts . | . . . . Manual . | . . . . Terminals . | . . . . Fabricators . | . . . . Repair Stations . | . . . . Recycling Units . | . . . . Scanalyzers . | . . . . Garrison Access . | . . . . Terminal Hacks . | . . . . Fabricator Hacks . | . . . . Repair Station Hacks . | . . . . Recycling Unit Hacks . | . . . . Scanalyzer . | . . . . Garrison Access Hacks . | . . . . Unauthorized Hacks . | . . . . Terminals . | . . . . Fabricators . | . . . . Repair Stations . | . . . . Recycling Units . | . . . . Scanalyzers . | . . . . Garrison Access . | . . . . Data Cores Recovered . | . . . . Used . | . . . . Hacking Detections . | . . . . Full Trace Events . | . . . . Feedback Events . | . . . . Feedback Blocked . | . . . . Robot Schematics Acquired . | . . . . Robots Built . | . . . . Authchips . | . . . . Time . | . . . . Total Robot Build Rating . | . . . . Part Schematics Acquired . | . . . . Parts Built . | . . . . Authchips . | . . . . Time . | . . . . Total Part Build Rating . | . . . . Parts Repaired . | . . . . Time . | . . . . Parts Recycled . | . . . . Recycled Matter . | . . . . Retrieved Matter . | . . . . Retrieved Components . | . . . . Parts Scanalyzed . | . . . . Part Schematics Acquired . | . . . . Parts Damaged . | . . . . Bothacking | -11 -10 -10 -10 ------------ Run | Yrd Mat Min Sub Used RIF Installer . | . . . . Robots Hacked . | . . . . Non-combat . | . . . . Combat . | . . . . Robot Hacks Applied . | . . . . Relay Couplers Released . | . . . . Fabnet Peak Effective % . | . . . . Robots Rewired . | . . . . Allies Hacked . | . . . . Hacks Repelled . | . . . . Allies | -11 -10 -10 -10 -------- Run | Yrd Mat Min Sub Total Allies . | . . . . Largest Group . | . . . . Highest-Rated Group . | . . . . Highest-Rated Ally . | . . . . Total Orders . | . . . . Ally Attacks . | . . . . Total Damage . | . . . . Kills . | . . . . Allies Corrupted . | . . . . Allies Melted . | . . . . Intel | -11 -10 -10 -10 ------- Run | Yrd Mat Min Sub Active Infowar (turns) . | . . . . Robot Analysis Total . | . . . . Derelict Logs Recovered . | . . . . Drone Launches . | . . . . Drone Recoveries . | . . . . Exploration | -11 -10 -10 -10 ------------- Run | Yrd Mat Min Sub Turns Passed 418 | 52 205 81 80 Spaces Moved 311 | 37 111 100 63 Core 25 | 25 . . . Treads 72 | 12 60 . . Legs . | . . . . Wheels . | . . . . Hover 214 | . 51 100 63 Flight . | . . . . Fastest Speed 50 | 50 56 56 56 Average Speed 83 | 112 112 56 58 Slowest Speed 160 | 160 160 56 60 Overloaded Moves . | . . . . Propulsion Burnouts . | . . . . Robots Hopped . | . . . . Potential Cave-ins . | . . . . Cave-ins Triggered . | . . . . Exploration Rate (%) 14 | 3 29 18 6 Regions Visited 3 Branch Regions 2 Pre-discovered Areas . | . . . . Known Exits Taken . | . . . . Unknown Exits Taken 3 | 1 1 1 . Scrap Searched 1 | . . 1 . Spaces Dug . | . . . . Terrain Destroyed 85 | . 85 . . Melee . | . . . . Projectile . | . . . . AOE 85 | . 85 . . Terrain Rammed . | . . . . Walls Destroyed . | . . . . Machines Disabled . | . . . . Actions | -11 -10 -10 -10 --------- Run | Yrd Mat Min Sub Total 396 | 48 150 112 86 Wait 5 | . . . 5 Move 308 | 36 110 99 63 Hop . | . . . . Pick Up 11 | 6 3 1 1 Fast Attach . | . . . . Attach 7 | 5 1 . 1 Detach . | . . . . Swap 4 | . 3 1 . Drop 1 | 1 . . . Fire 38 | . 33 1 4 Melee 22 | . . 10 12 Ram . | . . . . Kick . | . . . . Crush . | . . . . Escape Stasis . | . . . . Rewire . | . . . . Trap . | . . . . Miscellaneous . | . . . . Route ------- -11/Scrapyard -10/Materials -10/Mines (discovered 2 exits: [*Mat] / [*Sub]) -10/Subcaves (discovered 1 exit: [*Mat]) History --------- Turn | Location | Event 28 | -11/Scrapyard | Discovered new exit (range 15) 53 | -11/Scrapyard | Entered Materials 101 | -10/Materials | Discovered new exit (range 14) 193 | -10/Materials | Destroyed 7 combat bots 258 | -10/Materials | Entered Mines 262 | -10/Mines | Discovered new exit (range 6) 286 | -10/Mines | A weapon hastily lodged in a ceiling crevice suddenly fell to the ground 309 | -10/Mines | Build established: Mutant 329 | -10/Mines | Discovered new exit (range 15) 339 | -10/Mines | Entered Subcaves 340 | -10/Subcaves | Approached by a straggling Scientist 344 | -10/Subcaves | Shifting Twisted Machinery released Flamer 344 | -10/Subcaves | Shifting Twisted Machinery released Sub. Optics 360 | -10/Subcaves | Core integrity fell below 50% 406 | -10/Subcaves | Discovered new exit (range 3) 414 | -10/Subcaves | Core integrity fell below 20% 419 | -10/Subcaves | Destroyed by S-10 Pest with Light Assault Rifle Last Messages --------------- I think I can... The group I got separated from was talking about a shortcut back to the UFD." Flamer falls loose from the Twisted Machinery. Sub. Optics falls loose from the Twisted Machinery. Acquired Flamer. HL-719(R) destroyed. Subatomizers dissect the Disposable Heat Sink. Hover Unit destroyed. Subatomizers dissect the Disposable Heat Sink. Assault Rifle destroyed. 21-5XN(R) destroyed. 6G-20D(c): "I think it's somewhere southwest of here" Subatomizers dissect the Disposable Heat Sink. Critical hit (Burn: +37). EXIT=FOUND Hover Unit destroyed. Flamer destroyed. Map ----- +----------------------------------------------------+ | ?????????????????????????????????????????????????? | | ?????????????????????????????????????????????????? | | ?????????????????????????????????????????????????? | | ?????????????????????????????????????????????????? | | ?????????????????????????????????????????????????? | | ?????????????????????????????????????????????????? | | ?????????????????????????????????????????????????? | | ?????????????????????????????????????????????????? | | ?????????????????????????????????????????????????? | | ?????????????????????????????????????????????????? | | ?????????????????????????????????????????????????? | | ????????????????????????????????????????????? ??? | | ????????????????????????????????????????????? | | ????????????????????????????????????????????? | | ????????????????????????????????????????????? | | ????????????????????????????????????????????# | | ???????????????????????????????????????????# | | ??????????????????????????????????????????? | | ??????????????????#####??????##???????????? | | ??????????????????# ?#### ?????????????# | | ??????????????????# ## ????????????## | | ??????????????????# # ????????????## | | ??????????????????# s < ???????????### #? | | ??????????????????# Y ############# #???? | | ??????????????????# ## ## # # #???? | | ???????????????????# @ ##### | | ???????????????????## c # # | | ????????????????????### # ## ##### !%[ | | ??????????????????????####### ######???# = " | | ????????????????????????????###????????## ##" | | ???????????????????????????????????????## #?# | | ???????????????????????????????????????# #?# | | ???????????????????????????????????????#### ! ### | | ??????????????????????????????????????????##%[ ## | | ???????????????????????????????????????????#! # | | ??????????????????????????????????????????## | | ??????????????????????????????????????????# | | ??????????????????????????????????????????# "#" | | ??????????????????????????????????????????### "### | | ????????????????????????????????????????????## #?? | | ?????????????????????????????????????????????###?? | | ?????????????????????????????????????????????????? | | ?????????????????????????????????????????????????? | | ?????????????????????????????????????????????????? | | ?????????????????????????????????????????????????? | | ?????????????????????????????????????????????????? | | ?????????????????????????????????????????????????? | | ?????????????????????????????????????????????????? | | ?????????????????????????????????????????????????? | | ?????????????????????????????????????????????????? | +----------------------------------------------------+ Best States ------------- Heat Dissipation 25 Energy Generation 10 Energy Capacity 250 Matter Stores 300 Matter Capacity 300 Sight Range 16 Terrain Scan Density 10 Evasion (%) 53 Recoil Reduction 2 Item Schematics ----------------- None Robot Schematics ------------------ None Fabricated ------------ Nothing Repaired ---------- Nothing Alien Tech Used ----------------- None Achievements -------------- None Challenges ------------ None Game ------ Seed DataOpticalPick Manual? 0 Play Time 00:05:00 Cumulative 97.8 hours Start 2025.08.20 @ 19:43:53 End 2025.08.20 @ 19:48:02 Sessions 1 Manual Loads 0 Difficulty Rogue Special Mode None Game No. 378 Rogue 378 Adventurer 0 Explorer 0 Win Type - Total 0 Types 0/0/0/0/0/0/0/0/0/0 Lore% 43 Gallery% 40 Achievement% 31 Wizard Run 0 Options --------- Layout 2 ASCII 0 Keyboard 0 Movement Mouse Keybinds 0 Fullscreen 2 Font 24/Smallcaps Map View 50x44 Zoom Use 0% Tactical HUD 0 Map Filters NONE Filters NONE Steam 1 RUN: 105ec24b-af22-4b0f-906e-39d6c65a59cf